Cogmind - Beta 13 @@@ ROGUE MODE // 2024.07.13 @ 01:00:17 Player: APerTAS Result: Destroyed by QT-14W(B) with Heavy Battle Rifle Performance ------------- Evolutions (1) 500 Regions Visited (5) 1000 Robots Destroyed (6) 30 Value Destroyed (162) 162 Prototype IDs (4) 80 Alien Tech Used (0) 0 Bonus (600) 600 TOTAL SCORE: 2372 Bonus ------- Met Imprinter 300 Was Imprinted 300 Cogmind --------- Core Integrity 0/400 Matter 300/300 Energy 99/100 System Corruption 2% Temperature Cool (0) Movement Core (50) Location -7/Zion Parts ------- > --- POWER (1) -------- (None) > --- PROPULSION (2) --- (None) > --- UTILITY (4) ------ Experimental Terrain Scan Processor Targeting Computer Improved Targeting Computer > --- WEAPON (2) ------- CR-A16's Pointy Stick > --- INVENTORY (5) ---- Flight Unit Beam Cannon Mining Laser Katana Makeshift Spear Peak State ------------ > --- POWER ------------ Makeshift Power Source > --- PROPULSION ------- VTOL Module Makeshift Flight Unit > --- UTILITY ---------- Heat Sink Experimental Terrain Scan Processor Targeting Computer Improved Targeting Computer > --- WEAPON ----------- Makeshift Spear > --- INVENTORY -------- Flight Unit Beam Cannon Mining Laser Katana CR-A16's Pointy Stick [Rating: 27] Favorites ----------- Power Light Ion Engine Engine Light Ion Engine Propulsion VTOL Module Treads Advanced Treads Leg Carbon-fiber Leg Wheel Wheel Hover Unit Airjet Flight Unit VTOL Module Utility Targeting Computer Device Heat Sink Processor Targeting Computer Weapon Katana Energy Gun Small Laser Ballistic Gun Light Assault Rifle Launcher Missile Launcher Slashing Weapon Katana Piercing Weapon Makeshift Spear Build | -11 -10 -10 -9 -9 -7 ------- Run | Yrd Mat Min Mat Min Zio Slots Evolved 2 | . . . 2 . . Power . | . . . . . . Propulsion . | . . . . . . Utility 2 | . . . 2 . . Weapon . | . . . . . . Parts Attached 32 | 3 1 14 6 . 8 Power 2 | . . 1 . . 1 Engine 2 | . . 1 . . 1 Core . | . . . . . . Reactor . | . . . . . . Propulsion 9 | 1 . 5 2 . 1 Treads 1 | . . 1 . . . Leg 3 | . . 3 . . . Wheel 1 | 1 . . . . . Hover 1 | . . 1 . . . Flight 3 | . . . 2 . 1 Utility 9 | . 1 4 2 . 2 Device 5 | . . 4 1 . . Storage . | . . . . . . Processor 4 | . 1 . 1 . 2 Hackware . | . . . . . . Protection . | . . . . . . Artifact . | . . . . . . Weapon 12 | 2 . 4 2 . 4 Energy Gun 3 | 1 . 1 1 . . Energy Cannon . | . . . . . . Ballistic Gun 2 | 1 . 1 . . . Ballistic Cannon . | . . . . . . Launcher 1 | . . 1 . . . Special Weapon . | . . . . . . Impact Weapon . | . . . . . . Slashing Weapon 4 | . . 1 1 . 2 Piercing Weapon 2 | . . . . . 2 Special Melee Weapon . | . . . . . . Unidentified Prototypes 3 | . . . . . 3 Corrupted Parts 7 | . . 7 . . . System Corruption 50 | . . 50 . . . Parts Lost 5 | . . . . . 5 Power 1 | . . . . . 1 Propulsion 2 | . . . . . 2 Utility 2 | . . . . . 2 Weapon . | . . . . . . Highest Loss Streak 4 | . . . . . 4 To Critical Strikes . | . . . . . . Average Slot Usage (%) 77 | . 35 74 72 88 85 Engine 10 | . . 12 11 11 10 Leg 6 | . . 22 . . . Flight 12 | . . . 7 22 20 Device 9 | . . 6 13 22 11 Processor 24 | . 7 14 18 22 32 Energy Gun 1 | . 14 1 6 . . Ballistic Gun 1 | . 14 2 . . . Slashing Weapon 6 | . . 11 10 11 4 Piercing Weapon 3 | . . . . . 6 Naked Turns . | . . . . . . Heaviest Build 11 | 2 2 7 11 7 8 Greatest Support 30 | 3 3 30 8 8 12 Greatest Overweight (x) 1 | . . 1 1 . 1 Average Overweight (x) . | . . . . . . Largest Inventory Capacity 5 | 5 5 5 5 5 5 Average Capacity 5 | 5 5 5 5 5 5 Most Carried 5 | 5 3 4 5 4 5 Average Carried 3 | 1 2 1 1 4 4 Final Capacity 5 | 5 5 5 5 5 5 Final Carried 5 | 2 2 1 4 4 5 Class Distribution -------------------- 100% | Mutant Dominant Class ---------------- Mutant | -10/Materials Mutant | -10/Mines Mutant | -9/Materials Mutant | -9/Mines Mutant | -7/Zion Resources | -11 -10 -10 -9 -9 -7 ----------- Run | Yrd Mat Min Mat Min Zio Matter Collected 571 | 203 48 176 54 . 90 Remotely . | . . . . . . Salvage Created 291 | . 129 68 94 . . Parts 17 | . 7 6 4 . . Haulers Intercepted . | . . . . . . Recyclers Shooed . | . . . . . . Parts Field Recycled . | . . . . . . Retrieved Matter . | . . . . . . Parts Self-Destructed 2 | . . . . . 2 Prevented . | . . . . . . Kills | -11 -10 -10 -9 -9 -7 ------- Run | Yrd Mat Min Mat Min Zio Combat Hostiles Destroyed 4 | . 3 1 . . . Melee 1 | . . 1 . . . Guns 3 | . 3 . . . . Classes Destroyed 3 | . 1 1 1 . . Tunneler 1 | . . 1 . . . Recycler 1 | . . . 1 . . Grunt 4 | . 3 1 . . . Best Kill Streak 3 | . 3 1 1 . . Combat Bots Only 3 | . 3 1 . . . Max Kills in Single Turn 1 | . 1 1 1 . . Gunslinging . | . . . . . . Exploded . | . . . . . . Melee 1 | . . 1 . . . Uniques/NPCs Destroyed . | . . . . . . Combat | -11 -10 -10 -9 -9 -7 -------- Run | Yrd Mat Min Mat Min Zio Hostile Shots Fired 131 | . 22 16 4 . 89 Missed 58 | . 6 7 . . 45 Damage Taken 847 | . 173 136 42 . 496 Core 555 | . 106 38 32 . 379 Absorbed by Shields . | . . . . . . Core Remaining (%) 71 | 100 . 42 . . . Volleys Fired 11 | . 11 . . . . Largest 2 | . 2 . . . . Hottest 60 | . 60 . . . . Shots Fired 23 | . 22 1 . . . Gun 23 | . 22 1 . . . Cannon . | . . . . . . Launcher . | . . . . . . Special . | . . . . . . Kinetic 11 | . 11 . . . . Thermal 12 | . 11 1 . . . Explosive . | . . . . . . Electromagnetic . | . . . . . . Robot Hit Streak 9 | . 9 . . . . Robot Miss Streak 1 | . 1 . . . . Penetration Max . | . . . . . . Secondary Targets 1 | . 1 . . . . Max Gunslinging Chain 1 | . 1 . . . . Shots Hit Robots 27 | . 19 6 1 . 1 Core Hits 7 | . 6 1 . . . Critical Kills . | . . . . . . Critical Parts Destroyed . | . . . . . . Critical Strikes 1 | . . 1 . . . Sever 1 | . . 1 . . . Melee Attacks 47 | . . 8 1 . 38 Impact . | . . . . . . Slashing 19 | . . 8 1 . 10 Piercing 28 | . . . . . 28 Sneak Attacks 4 | . . 3 1 . . Combat Hostiles . | . . . . . . Follow-up Attacks . | . . . . . . Damage Inflicted 568 | . 182 264 75 . 47 Guns 182 | . 182 . . . . Cannons . | . . . . . . Explosions . | . . . . . . Melee 386 | . . 264 75 . 47 Ramming . | . . . . . . Kinetic 62 | . 62 . . . . Thermal 120 | . 120 . . . . Explosive . | . . . . . . Electromagnetic . | . . . . . . Impact . | . . . . . . Slashing 339 | . . 264 75 . . Piercing 47 | . . . . . 47 Highest Corruption 50 | . . 50 . . 2 Average Corruption 42 | . . 47 . . 2 Corruption Purged . | . . . . . . Corruption Blocked . | . . . . . . Effects 21 | . . 21 . . . Message Errors 4 | . . 4 . . . Matter Fused 5 | . . 5 . . . Heat Flow Errors 6 | . . 6 . . . Energy Discharges 3 | . . 3 . . . Data Loss (minor) 1 | . . 1 . . . Misfires 1 | . . 1 . . . Alerts 1 | . . 1 . . . Overload Shots . | . . . . . . Overflow Damage 103 | . . 68 35 . . Projectiles . | . . . . . . Explosions . | . . . . . . Melee 103 | . . 68 35 . . Knockbacks . | . . . . . . Impact . | . . . . . . Kinetic . | . . . . . . Secondary . | . . . . . . Self-Inflicted Damage . | . . . . . . Shots . | . . . . . . Rammed . | . . . . . . Targets Rammed . | . . . . . . Kicked . | . . . . . . Crushed . | . . . . . . Highest Temperature 245 | . 51 245 . . . Average Temperature 76 | . 24 101 . . . Received Heat Transfer 284 | . 96 87 12 . 89 Siege Activations . | . . . . . . Robots Corrupted . | . . . . . . Combat Hostiles . | . . . . . . Parts Fried . | . . . . . . Impact Corruptions . | . . . . . . Robots Melted . | . . . . . . Combat Hostiles . | . . . . . . Parts Melted . | . . . . . . Heat Transferred 275 | . 275 . . . . Parts Sabotaged . | . . . . . . Parts Stolen . | . . . . . . Parts Stripped . | . . . . . . Power Chain Reactions . | . . . . . . Alert | -11 -10 -10 -9 -9 -7 ------- Run | Yrd Mat Min Mat Min Zio Peak Influence 100 | . 100 89 20 7 . Initial 39 | . . 39 . 7 . Average 41 | . 47 56 7 7 . Maximum Alert Level . | . . . . . . Low Security (%) 100 | 100 100 100 100 100 . Level 1 . | . . . . . . Level 2 . | . . . . . . Level 3 . | . . . . . . Level 4 . | . . . . . . Level 5 . | . . . . . . High Security . | . . . . . . Max Security . | . . . . . . Squads Dispatched 3 | . 2 1 . . . Investigation 3 | . 2 1 . . . Extermination . | . . . . . . Reinforcement . | . . . . . . Assault . | . . . . . . Garrison . | . . . . . . Intercept . | . . . . . . Searches Triggered . | . . . . . . Construction Impeded . | . . . . . . Haulers Reinforced . | . . . . . . Active Scanning Responses . | . . . . . . Cargo Convoy Interrupts . | . . . . . . Stealth | -11 -10 -10 -9 -9 -7 --------- Run | Yrd Mat Min Mat Min Zio Distress Signals . | . . . . . . Communications Jammed . | . . . . . . Distress Signals . | . . . . . . Times Spotted 39 | . 4 3 6 . 26 Peak Tracking Total 19 | . 5 2 5 . 19 Tactical Retreats 2 | . . 1 . . 1 Traps | -11 -10 -10 -9 -9 -7 ------- Run | Yrd Mat Min Mat Min Zio Traps Triggered 1 | . 1 . . . . Indirectly . | . . . . . . Trap Hack Attempts . | . . . . . . Triggered . | . . . . . . Disarmed . | . . . . . . Reprogrammed . | . . . . . . Reused . | . . . . . . Traps Extracted . | . . . . . . Installed . | . . . . . . Triggered . | . . . . . . Machines | -11 -10 -10 -9 -9 -7 ---------- Run | Yrd Mat Min Mat Min Zio Machines Disabled . | . . . . . . Max in Single Turn . | . . . . . . Machines Repaired . | . . . . . . Machines Dismantled . | . . . . . . Machines Sabotaged . | . . . . . . Overloaded Fab Kills . | . . . . . . Hacking | -11 -10 -10 -9 -9 -7 --------- Run | Yrd Mat Min Mat Min Zio Machines Accessed 4 | . 1 2 1 . . Terminals 1 | . . . 1 . . Fabricators . | . . . . . . Repair Stations . | . . . . . . Recycling Units 1 | . 1 . . . . Scanalyzers . | . . . . . . Garrison Access . | . . . . . . Total Hacks 7 | . 1 2 4 . . Successful 4 | . 1 2 1 . . Failed 3 | . . . 3 . . Catastrophic . | . . . . . . Database Lockouts . | . . . . . . Manual 8 | . 1 . 3 . 4 Terminals 4 | . . . 4 . . Fabricators . | . . . . . . Repair Stations . | . . . . . . Recycling Units 1 | . 1 . . . . Scanalyzers . | . . . . . . Garrison Access . | . . . . . . Terminal Hacks 3 | . . 2 1 . . Open Door 2 | . . 2 . . . Locate Traps 1 | . . . 1 . . Fabricator Hacks . | . . . . . . Repair Station Hacks . | . . . . . . Recycling Unit Hacks . | . . . . . . Scanalyzer . | . . . . . . Garrison Access Hacks . | . . . . . . Unauthorized Hacks 1 | . 1 . . . . Terminals . | . . . . . . Fabricators . | . . . . . . Repair Stations . | . . . . . . Recycling Units 1 | . 1 . . . . Tunnel 1 | . 1 . . . . Scanalyzers . | . . . . . . Garrison Access . | . . . . . . Data Cores Recovered . | . . . . . . Used . | . . . . . . Hacking Detections 1 | . . . 1 . . Full Trace Events 1 | . . . 1 . . Feedback Events . | . . . . . . Feedback Blocked . | . . . . . . Robot Schematics Acquired 3 | . . . . . 3 Robots Built . | . . . . . . Authchips . | . . . . . . Time . | . . . . . . Total Robot Build Rating . | . . . . . . Part Schematics Acquired 16 | . . . . . 16 Parts Built . | . . . . . . Authchips . | . . . . . . Time . | . . . . . . Total Part Build Rating . | . . . . . . Parts Repaired . | . . . . . . Time . | . . . . . . Parts Recycled . | . . . . . . Recycled Matter . | . . . . . . Retrieved Matter . | . . . . . . Retrieved Components . | . . . . . . Parts Scanalyzed . | . . . . . . Part Schematics Acquired . | . . . . . . Parts Damaged . | . . . . . . Bothacking | -11 -10 -10 -9 -9 -7 ------------ Run | Yrd Mat Min Mat Min Zio Used RIF Installer . | . . . . . . Robots Hacked . | . . . . . . Non-combat . | . . . . . . Combat . | . . . . . . Robot Hacks Applied . | . . . . . . Relay Couplers Released . | . . . . . . Fabnet Peak Effective % . | . . . . . . Robots Rewired . | . . . . . . Allies Hacked . | . . . . . . Hacks Repelled . | . . . . . . Allies | -11 -10 -10 -9 -9 -7 -------- Run | Yrd Mat Min Mat Min Zio Total Allies 6 | . . . . . 6 Largest Group 4 | . . . . . 4 Highest-Rated Group 192 | . . . . . 192 Highest-Rated Ally 96 | . . . . . 96 Total Orders . | . . . . . . Ally Attacks 21 | . . . . . 21 Total Damage 999 | . . . . . 999 Kills 4 | . . . . . 4 Allies Corrupted . | . . . . . . Allies Melted . | . . . . . . Intel | -11 -10 -10 -9 -9 -7 ------- Run | Yrd Mat Min Mat Min Zio Robot Analysis Total . | . . . . . . Derelict Logs Recovered 2 | . . 1 . 1 . Drone Launches . | . . . . . . Drone Recoveries . | . . . . . . Exploration | -11 -10 -10 -9 -9 -7 ------------- Run | Yrd Mat Min Mat Min Zio Turns Passed 1596 | 47 129 403 111 24 882 Spaces Moved 2589 | 71 192 298 142 69 1817 Core 372 | 71 192 25 1 . 83 Treads 11 | . . 11 . . . Legs 256 | . . 256 . . . Wheels . | . . . . . . Hover 69 | . . 6 63 . . Flight 1881 | . . . 78 69 1734 Fastest Speed 34 | 50 50 50 34 34 34 Average Speed 50 | 50 50 115 66 34 38 Slowest Speed 145 | 50 50 145 120 34 115 Overloaded Moves . | . . . . . . Propulsion Burnouts . | . . . . . . Robots Hopped 2 | . . . . 2 . Cave-ins Triggered . | . . . . . . Exploration Rate (%) 36 | 4 24 59 13 30 91 Regions Visited 5 Branch Regions 3 Pre-discovered Areas 3 | . 1 . . . 2 Known Exits Taken . | . . . . . . Unknown Exits Taken 5 | 1 1 1 1 1 . Scrap Searched 3 | . . 1 . . 2 Spaces Dug 2 | . . . . . 2 Terrain Destroyed 2 | . . . . . 2 Melee 2 | . . . . . 2 Projectile . | . . . . . . AOE . | . . . . . . Terrain Rammed . | . . . . . . Walls Destroyed . | . . . . . . Machines Disabled . | . . . . . . Actions | -11 -10 -10 -9 -9 -7 --------- Run | Yrd Mat Min Mat Min Zio Total 2805 | 84 204 351 158 66 1942 Wait 66 | . . 5 . . 61 Move 2580 | 70 191 297 141 64 1817 Hop 2 | . . . . 2 . Pick Up 38 | 7 1 14 7 . 9 Fast Attach . | . . . . . . Attach 29 | 3 1 13 6 . 6 Detach 4 | 1 . . 2 . 1 Swap 4 | . . 1 . . 3 Drop 24 | 3 . 13 1 . 7 Fire 11 | . 11 . . . . Melee 47 | . . 8 1 . 38 Ram . | . . . . . . Kick . | . . . . . . Crush . | . . . . . . Escape Stasis . | . . . . . . Rewire . | . . . . . . Trap . | . . . . . . Miscellaneous . | . . . . . . Route ------- -11/Scrapyard -10/Materials -10/Mines -9/Materials (discovered 2 exits: Mat / [*Min]) -9/Mines (discovered 2 exits: *Mat / *Zio) -7/Zion (discovered 1 exit: [*Pro]) History --------- Turn | Location | Event 8 | -11/Scrapyard | Discovered new exit (range 16) 48 | -11/Scrapyard | Entered Materials 173 | -10/Materials | Discovered new exit (range 9) 177 | -10/Materials | Entered Mines 186 | -10/Mines | Met a Derelict who couldn't figure out how to use a Trap Extractor 193 | -10/Mines | System corruption reached 10% 209 | -10/Mines | System corruption reached 30% 293 | -10/Mines | Learned location of 1 exit from Materials 301 | -10/Mines | Build established: Mutant 305 | -10/Mines | Met a Derelict bent on vengeance 421 | -10/Mines | Core integrity fell below 50% 545 | -10/Mines | Discovered new exit (range 9) 563 | -10/Mines | Met a Derelict shopkeep closing up shop 580 | -10/Mines | Entered Materials 580 | -9/Materials | Evolved 2 slots: Utility x2 581 | -9/Materials | Identified exit to Materials 684 | -9/Materials | Discovered new exit (range 12) 691 | -9/Materials | Entered Mines 693 | -9/Mines | Learned 2 Materials zone layouts 712 | -9/Mines | Discovered exit to Materials (range 12) 713 | -9/Mines | A Derelict revealed a hidden shortcut to a safe place 715 | -9/Mines | Entered Zion 781 | -7/Zion | Given A8's code to call for help 785 | -7/Zion | Found Prototype Processor 786 | -7/Zion | Identified Exp. Signal Interpreter 788 | -7/Zion | Found Prototype Processor 789 | -7/Zion | Identified Exp. Core Analyzer 791 | -7/Zion | Found Prototype Processor 792 | -7/Zion | Identified Exp. Terrain Scan Processor 821 | -7/Zion | Received a hallucinogenic algorithm 885 | -7/Zion | Learned location of Warlord (-5) 969 | -7/Zion | Given the Hacking Drone Bay 1155 | -7/Zion | Discovered new exit (range 14) 1168 | -7/Zion | Found CR-A16's Pointy Stick 1273 | -7/Zion | Warned about damaging Zion machinery 1409 | -7/Zion | Imprinted 1411 | -7/Zion | Declared Zion's savior 1530 | -7/Zion | Caused signficant damage to Zion machinery 1530 | -7/Zion | Attacked by Zionites 1551 | -7/Zion | Enhanced Grunt warped into view, answering call for help 1561 | -7/Zion | Enhanced Grunt warped into view, answering call for help 1571 | -7/Zion | Core integrity fell below 50% 1583 | -7/Zion | Lost 4 parts (1p2n1u) 1593 | -7/Zion | Spotted QT-14W(B) 1595 | -7/Zion | Spotted RA-0WH(B) 1596 | -7/Zion | Core integrity fell below 20% 1597 | -7/Zion | Destroyed by QT-14W(B) with Heavy Battle Rifle Last Messages --------------- VTOL Module destroyed. Mak. Power Source destroyed. Heat Sink destroyed. GL-BEE(z) emerges from the Twisted Machinery. GL-BEE(z) pulls a Mak. Axe out of the Twisted Machinery. IX-U7W(z) pulls a Mak. Shrapnel Gun out of the Twisted Machinery. RE-PZC(z) pulls a Mak. Laser out of the Twisted Machinery. RM-6BO(z) pulls a Mak. Hammer out of the Twisted Machinery. C1-N4Y(z) pulls a Mak. Laser out of the Twisted Machinery. DT-59B(z) pulls a Mak. Shrapnel Gun out of the Twisted Machinery. AH-HLG(z) pulls a Mak. Shrapnel Gun out of the Twisted Machinery. PB-NZF(z) pulls a Mak. Shrapnel Gun out of the Twisted Machinery. Map ----- +----------------------------------------------------+ | """ """ """""#?????????????????????????? | | # """ """ ""#?????????????????????????? | | # "" "" "" "##?????????????????????????? | | """" "" ""#?????????????????#"""###?? | | """""" "" ""##?????????????????#|| ""##? | | "" ""#??????????????????#|| ""#? | | " ""##?????????????????#""" ""#? | | " """#?????????????????### "##? | | " ""###?????????????????# ####? | | " """###????????????????# #? | | " " " """"#???????????????## ## | | """" """"" "" ""##???????????????# ## # | | ##"" """"#"""" """#????????????????# ### | | ?##" """""""""" """#????????????????## ## | | ?#"" "" ""#""" "###?????????????????# ### # | | #""" """" ""#??????????????????# ## | | ##"" """##?????????????????# | | ?"#" "" """"#?????????????????# # | | ??"" """ """#?????????????????# | | ?##" "" """" ""#######????????????# | | ??#" """ """" """## "############?##### | | ???" """ "" "#### " """""""""#?????## | | ??"" """" ""z "###BB """""""#?????## | | ??"" #""" "" # BB = ####### | | ??"" """" " % %* | | ??"" ""## "" "" =@= | | ??"" """# " """"""; BB ##### | | ??#" """ """"""####BB "" "" ""#??## # | | ??#" "" """"####??# """"""""""#??# # | | ??#" "" """ """""#"#??# "############??# # | | ??#" #" """ " ""##??#####????????????## # | | ??#" "" """ ""#???????????????????# | | ?##" "" """ ""#???????????????????## | | ##"" "" """ """"#????????????????????### | | #"#" # """ ""###??????????????????????# | | ##"" "" "" ""##???????????????????????# | | #""" " """#???????????????????????# | | #"""/! "" ""##???????????????????????# ## | | ##"" "! """ """#????????????????????????##?## | | ?#"" ] """ """ "#"###??????????????????????????## | | ##"" """" """ """""##??????????????????????????? | | """" "" """ "#"#??????????????????????????? | | "" """"""=""#???????????????????????????? | | """""!"##???????????????????????????? | | """"%""#???????????????????????????? | | "" ""]!""##??????????????????????????? | | """ ""#??????????????????????????? | | "" """" ""#??????????????????????????? | | """ """" """""""""#??????????????????????????? | | """""" """""""#""##"""#??????????????????????????? | +----------------------------------------------------+ Best States ------------- Heat Dissipation 38 Energy Generation 15 Energy Capacity 170 Matter Stores 300 Matter Capacity 300 Sight Range 16 Terrain Scan Density 1010 Evasion (%) 63 Targeting Accuracy 11 Recoil Reduction 1 Item Schematics ----------------- Plasma Rifle | -7/Zion | Archive Great Axe | -7/Zion | Archive Mass Driver | -7/Zion | Archive Falx | -7/Zion | Archive Imp. Deuterium Engine | -7/Zion | Archive Coolant Injector | -7/Zion | Archive Adv. Terrain Scanner | -7/Zion | Archive Hvy. Riot Gun | -7/Zion | Archive Mak. Transmission Jammer | -7/Zion | Archive Proton Missile Launcher | -7/Zion | Archive KE Penetrator | -7/Zion | Archive Imp. Heavy Armor Plating | -7/Zion | Archive Kinecellerator | -7/Zion | Archive Mak. Salvage Targeting Computer | -7/Zion | Archive Imp. Medium Treads | -7/Zion | Archive Imp. KE Penetrator | -7/Zion | Archive Robot Schematics ------------------ B-48 Gladiator | -7/Zion | Archive A-02 Transporter | -7/Zion | Archive L-31 Rogue | -7/Zion | Archive Fabricated ------------ Nothing Alien Tech Used ----------------- None Achievements -------------- Z1$+NX3F=JRE3_ZNQR Challenges ------------ None Game ------ Seed DefenseBehemothSteel Manual? 0 Play Time 00:31:24 Cumulative 13.5 hours Start 2024.07.13 @ 00:31:21 End 2024.07.13 @ 01:00:17 Sessions 1 Manual Loads 0 Difficulty Rogue Special Mode None Game No. 39 Rogue 39 Adventurer 0 Explorer 0 Win Type - Total 0 Types 0/0/0/0/0/0/0/0/0 Lore% 20 Gallery% 19 Achievement% 17 Wizard Run 0 Options --------- Layout 1 ASCII 0 Keyboard 0 Movement Arrows Keybinds 0 Fullscreen 1 Font 28/Dina Map View 50x43 Zoom Use 0% Tactical HUD 0 Map Filters NONE Filters NONE Steam 1 RUN: 600b274e-e3e2-4a85-838f-bb92fcf4e045